[Event "FIDE World Junior U20-ch Girls 2025"]
[Site "Petrovac"]
[Date "2025.02.28"]
[Round "4.31"]
[White "Avetisyan, Ani"]
[Black "Peglau, Dora"]
[Result "1-0"]
[Annotator "ChessBase"]
[ECO "E15"]
[WhiteElo "1904"]
[BlackElo "2134"]
[PlyCount "181"]
[EventDate "2025.02.23"]
[EventType "swiss"]
[EventCountry "MNE"]
[SourceTitle "playchess.com"]
[Source "ChessBase"]
[SourceQuality "1"]
[TimeControl "40/5400+30:1800+30"]

1. d4 {[%emt 0:00:03]} Nf6 {[%emt 0:00:06]} 2. c4 {[%emt 0:00:04]} e6 {[%emt 0:00:04]} 3. Nf3 {[%emt 0:00:03]} b6 {[%emt 0:00:05]} 4. g3 {[%emt 0:00:09]} Ba6 {[%emt 0:00:12]} 5. Qa4 {[%emt 0:00:05]} Bb7 {[%emt 0:00:21]} 6. Bg2 {[%emt 0:00:13]} Be7 {[%emt 0:00:16]} 7. O-O {[%emt 0:08:50]} O-O {[%emt 0:00:11]} 8. Rd1 {[%emt 0:03:43]} c5 {[%emt 0:05:09]} 9. dxc5 {[%emt 0:02:52]} bxc5 {[%emt 0:00:17]} 10. Nc3 {[%emt 0:00:40]} Qb6 {[%emt 0:03:30]} 11. Bf4 {[%emt 0:01:01]} d6 {[%emt 0:06:04]} 12. Rab1 {[%emt 0:00:38]} Ne4 {[%emt 0:04:51]} 13. Nd2 {[%emt 0:07:15]} Nxd2 {[%emt 0:01:28]} 14. Rxd2 {[%emt 0:00:10]} Bxg2 {[%emt 0:00:33]} 15. Kxg2 {[%emt 0:00:04]} Rd8 {[%emt 0:27:20]} 16. Qb5 {[%emt 0:09:36]} Nc6 {[%emt 0:07:53]} 17. Rbd1 {[%emt 0:02:58]} Qxb5 {[%emt 0:09:05]} 18. Nxb5 {[%emt 0:00:32]} Nd4 {[%emt 0:01:04]} 19. Nc3 {[%emt 0:05:20]} Rab8 {[%emt 0:08:49]} 20. g4 {[%emt 0:04:19]} e5 {[%emt 0:11:29]} 21. Bg3 {[%emt 0:02:41]} f6 {[%emt 0:05:17]} 22. e3 {[%emt 0:04:37]} Ne6 {[%emt 0:00:01]} 23. b3 {[%emt 0:00:27]} Kf7 {[%emt 0:00:22]} 24. h4 {[%emt 0:05:29]} g6 {[%emt 0:01:13]} 25. f4 {[%emt 0:01:29]} Nc7 {[%emt 0:03:35]} 26. g5 {[%emt 0:08:45]} Ke6 {[%emt 0:01:36]} 27. gxf6 {[%emt 0:01:22]} Bxf6 {[%emt 0:00:17]} 28. Ne4 {[%emt 0:00:01]} exf4 29. Bxf4 {[%emt 0:01:56]} Bxh4 {[%emt 0:01:49]} 30. Rxd6+ {[%emt 0:03:08]} Rxd6 {[%emt 0:00:01]} 31. Rxd6+ {[%emt 0:00:01]} Kf5 {[%emt 0:01:44]} 32. Nxc5 {[%emt 0:00:05]} Re8 {[%emt 0:00:48]} 33. Kf3 {[%emt 0:00:56]} Ne6 {[%emt 0:00:54]} 34. Nxe6 {[%emt 0:07:56]} Rxe6 {[%emt 0:00:02]} 35. e4+ {[%emt 0:01:05]} Kf6 {[%emt 0:00:15]} 36. Rd7 {[%emt 0:00:22]} Re7 {[%emt 0:00:53]} 37. Rd8 {[%emt 0:02:18]} g5 {[%emt 0:00:50]} 38. e5+ {[%emt 0:00:58]} Ke6 {[%emt 0:00:34]} 39. Rd6+ {[%emt 0:00:41]} Kf7 {[%emt 0:00:01]} 40. Bh2 {[%emt 0:00:09]} Be1 {[%emt 0:00:51]} 41. Kg4 {[%emt 0:30:20]} Bb4 {[%emt 0:04:25]} 42. Rc6 {[%emt 0:00:00]} Bd2 {[%emt 0:01:40]} 43. Kf5 {[%emt 0:00:00]} h5 {[%emt 0:02:15]} 44. e6+ {[%emt 0:00:00]} Kg7 {[%emt 0:00:05]} 45. Be5+ {[%emt 0:00:00]} Kh6 {[%emt 0:00:07]} 46. Rc8 {[%emt 0:00:00]} Bb4 {[%emt 0:00:11]} 47. Bf6 {[%emt 0:00:00]} g4 {[%emt 0:01:13]} 48. Rh8+ {[%emt 0:00:00]} Rh7 {[%emt 0:00:08]} 49. Rg8 {[%emt 0:00:00]} Rb7 {[%emt 0:00:56]} 50. e7 {[%emt 0:00:00]} Rxe7 {[%emt 0:00:31]} 51. Bxe7 {[%emt 0:00:00]} Bxe7 {[%emt 0:00:01]} 52. Rg6+ {[%emt 0:00:00]} Kh7 {[%emt 0:00:07]} 53. Rc6 {[%emt 0:00:00]} Kg7 {[%emt 0:01:29]} 54. Rg6+ {[%emt 0:00:00]} Kh7 {[%emt 0:02:17]} 55. a4 {[%emt 0:00:00]} a5 {[%emt 0:00:44]} 56. Re6 {[%emt 0:00:00]} Bc5 {[%emt 0:01:29]} 57. Kf4 {[%emt 0:00:00]} Bf2 {[%emt 0:03:21]} 58. Kg5 {[%emt 0:00:00]} g3 {[%emt 0:00:57]} 59. Kxh5 {[%emt 0:00:00]} Kg7 {[%emt 0:02:40]} 60. Rg6+ {[%emt 0:00:00]} Kf7 {[%emt 0:00:08]} 61. c5 {[%emt 0:00:00]} Ke7 {[%emt 0:01:27]} 62. c6 {[%emt 0:00:00]} Kd8 {[%emt 0:00:15]} 63. Rg7 {[%emt 0:00:00]} Kc8 {[%emt 0:02:26]} 64. Kh6 {[%emt 0:00:00]} Be3+ {[%emt 0:00:55]} 65. Kh7 {[%emt 0:00:00]} Bf4 {[%emt 0:00:09]} 66. Kg8 {[%emt 0:00:00]} Be5 {[%emt 0:00:06]} 67. Rg6 {[%emt 0:00:00]} Kc7 {[%emt 0:00:19]} 68. Kf7 {[%emt 0:00:00]} Bd6 {[%emt 0:00:14]} 69. Ke6 {[%emt 0:00:16]} Kxc6 {[%emt 0:00:13]} 70. Rg4 {[%emt 0:00:10]} Bb8 {[%emt 0:03:16]} 71. Rc4+ {[%emt 0:00:19]} Kb7 {[%emt 0:00:43]} 72. Kd5 {[%emt 0:01:07]} Ba7 {[%emt 0:01:13]} 73. Rg4 {[%emt 0:00:17]} Bf2 {[%emt 0:00:29]} 74. Kc4 {[%emt 0:01:13]} Be1 {[%emt 0:01:38]} 75. Kc5 {[%emt 0:01:41]} Kc8 {[%emt 0:04:15]} 76. Rg7 {[%emt 0:01:03]} Kb8 {[%emt 0:01:10]} 77. Kd5 {[%emt 0:01:36]} Kc8 {[%emt 0:00:36]} 78. Ke4 {[%emt 0:00:16]} Kd8 {[%emt 0:01:50]} 79. Kf3 {[%emt 0:00:24]} Ke8 {[%emt 0:01:45]} 80. Ke2 {[%emt 0:01:28]} Bf2 {[%emt 0:00:52]} 81. Rg5 {[%emt 0:00:04]} Kf7 {[%emt 0:00:49]} 82. Rxa5 {[%emt 0:00:16]} Kf6 {[%emt 0:00:23]} 83. Kf3 {[%emt 0:00:05]} Be1 {[%emt 0:00:35]} 84. Rb5 {[%emt 0:00:12]} Ke6 {[%emt 0:00:09]} 85. a5 {[%emt 0:00:27]} Kd6 {[%emt 0:00:06]} 86. a6 {[%emt 0:00:46]} Bf2 {[%emt 0:00:12]} 87. Rb7 {[%emt 0:00:15]} Kc6 {[%emt 0:00:07]} 88. b4 {[%emt 0:00:10]} Bb6 {[%emt 0:00:47]} 89. Rxb6+ {[%emt 0:00:19]} Kxb6 {[%emt 0:00:05]} 90. b5 {[%emt 0:00:03]} Kxb5 {[%emt 0:00:14]} 91. a7 {[%emt 0:00:06]} 1-0

[Event "FIDE World Junior U20-ch Girls 2025"]
[Site "Petrovac"]
[Date "2025.02.28"]
[Round "4.32"]
[White "Canino, Ruelle"]
[Black "Braeutigam, Katerina"]
[Result "0-1"]
[Annotator "ChessBase"]
[ECO "A21"]
[WhiteElo "2179"]
[BlackElo "1981"]
[PlyCount "114"]
[EventDate "2025.02.23"]
[EventType "swiss"]
[EventCountry "MNE"]
[SourceTitle "playchess.com"]
[Source "ChessBase"]
[SourceQuality "1"]
[TimeControl "40/5400+30:1800+30"]

1. c4 {[%emt 0:00:08]} e5 {[%emt 0:00:05]} 2. Nc3 {[%emt 0:00:16]} d6 {[%emt 0:00:10]} 3. Nf3 {[%emt 0:00:15]} f5 {[%emt 0:00:15]} 4. d3 {[%emt 0:02:31]} Nf6 {[%emt 0:00:11]} 5. g3 {[%emt 0:00:28]} Be7 {[%emt 0:00:08]} 6. Bg2 {[%emt 0:00:06]} O-O {[%emt 0:00:10]} 7. O-O {[%emt 0:00:21]} Qe8 {[%emt 0:00:43]} 8. Rb1 {[%emt 0:02:53]} Qh5 {[%emt 0:01:06]} 9. b4 {[%emt 0:11:37]} Nc6 {[%emt 0:01:23]} 10. b5 {[%emt 0:07:40]} Nd8 {[%emt 0:00:34]} 11. Nd5 {[%emt 0:01:22]} Nxd5 {[%emt 0:00:15]} 12. cxd5 {[%emt 0:00:04]} Nf7 {[%emt 0:01:30]} 13. Ba3 {[%emt 0:05:19]} Bd8 {[%emt 0:16:20]} 14. Nd2 {[%emt 0:02:39]} f4 {[%emt 0:04:12]} 15. d4 {[%emt 0:16:33]} fxg3 {[%emt 0:20:11]} 16. fxg3 {[%emt 0:03:53]} Bg4 {[%emt 0:11:14]} 17. Rf2 {[%emt 0:02:32]} Bg5 {[%emt 0:07:15]} 18. Nc4 {[%emt 0:02:55]} exd4 {[%emt 0:03:35]} 19. Qxd4 {[%emt 0:03:49]} Bxe2 {[%emt 0:04:14]} 20. Bb2 {[%emt 0:08:19]} Bf6 {[%emt 0:07:01]} 21. Rxf6 {[%emt 0:02:11]} gxf6 {[%emt 0:00:13]} 22. Qxf6 {[%emt 0:00:03]} Qg6 {[%emt 0:02:24]} 23. Rc1 {[%emt 0:05:16]} Qxf6 {[%emt 0:04:05]} 24. Bxf6 {[%emt 0:00:06]} Nd8 {[%emt 0:03:57]} 25. Bb2 {[%emt 0:01:47]} Bf3 {[%emt 0:02:03]} 26. Ne3 {[%emt 0:03:04]} Bxg2 27. Kxg2 {[%emt 0:00:04]} Re8 {[%emt 0:04:34]} 28. Kf3 {[%emt 0:02:31]} Re7 {[%emt 0:03:10]} 29. Nf5 {[%emt 0:01:01]} Rd7 {[%emt 0:00:49]} 30. Kf4 {[%emt 0:02:01]} Nf7 {[%emt 0:00:41]} 31. Re1 {[%emt 0:01:31]} Ne5 {[%emt 0:02:21]} 32. Bxe5 {[%emt 0:00:56]} dxe5+ {[%emt 0:00:04]} 33. Rxe5 {[%emt 0:00:11]} a6 {[%emt 0:01:10]} 34. a4 {[%emt 0:01:24]} axb5 {[%emt 0:00:16]} 35. axb5 {[%emt 0:00:05]} Ra5 {[%emt 0:00:58]} 36. Nd4 {[%emt 0:01:07]} Ra4 {[%emt 0:00:20]} 37. Ke3 {[%emt 0:00:24]} Kf7 {[%emt 0:00:22]} 38. h4 {[%emt 0:00:51]} Re7 {[%emt 0:00:34]} 39. Ne6 {[%emt 0:00:49]} Kf6 {[%emt 0:00:30]} 40. Rg5 {[%emt 0:02:05]} Rb4 {[%emt 0:00:43]} 41. g4 {[%emt 0:31:15]} h6 {[%emt 0:03:49]} 42. Rf5+ {[%emt 0:00:00]} Kg6 {[%emt 0:00:10]} 43. h5+ {[%emt 0:00:00]} Kh7 {[%emt 0:00:11]} 44. Re5 {[%emt 0:00:00]} Kh8 {[%emt 0:04:19]} 45. Kf3 {[%emt 0:00:00]} Rxb5 {[%emt 0:03:25]} 46. Ke4 {[%emt 0:00:00]} Rd7 {[%emt 0:13:23]} 47. Nd4 {[%emt 0:00:00]} Rb4 {[%emt 0:04:17]} 48. Re6 {[%emt 0:00:00]} c5 {[%emt 0:02:05]} 49. Rxh6+ {[%emt 0:00:00]} Rh7 {[%emt 0:02:53]} 50. Rd6 {[%emt 0:00:00]} Rxd4+ {[%emt 0:00:18]} 51. Kf5 {[%emt 0:00:00]} Rf7+ {[%emt 0:00:25]} 52. Ke6 {[%emt 0:00:00]} Rg7 {[%emt 0:00:40]} 53. Rd8+ {[%emt 0:00:00]} Kh7 {[%emt 0:00:44]} 54. Rc8 {[%emt 0:00:00]} b6 {[%emt 0:00:25]} 55. Rc6 {[%emt 0:01:08]} Rgxg4 {[%emt 0:00:27]} 56. Rxb6 {[%emt 0:00:12]} Rg5 {[%emt 0:00:27]} 57. d6 {[%emt 0:04:22]} Rgd5 {[%emt 0:00:32]} 0-1

[Event "FIDE World Junior U20-ch Girls 2025"]
[Site "Petrovac"]
[Date "2025.02.28"]
[Round "4.33"]
[White "Bochnickova, Simona"]
[Black "Petricenco, Ana"]
[Result "0-1"]
[Annotator "ChessBase"]
[ECO "B90"]
[WhiteElo "2171"]
[BlackElo "1973"]
[PlyCount "88"]
[EventDate "2025.02.23"]
[EventType "swiss"]
[EventCountry "MNE"]
[SourceTitle "playchess.com"]
[Source "ChessBase"]
[SourceQuality "1"]
[TimeControl "40/5400+30:1800+30"]

1. e4 {[%emt 0:00:02]} c5 {[%emt 0:00:13]} 2. Nf3 {[%emt 0:00:04]} d6 {[%emt 0:00:12]} 3. d4 {[%emt 0:00:04]} cxd4 {[%emt 0:00:11]} 4. Nxd4 {[%emt 0:00:03]} Nf6 {[%emt 0:00:21]} 5. Nc3 {[%emt 0:00:04]} a6 {[%emt 0:00:22]} 6. h3 {[%emt 0:00:06]} e5 {[%emt 0:00:43]} 7. Nde2 {[%emt 0:00:05]} h5 {[%emt 0:00:57]} 8. g3 {[%emt 0:00:06]} Be7 {[%emt 0:05:17]} 9. Bg2 {[%emt 0:00:05]} b5 {[%emt 0:00:49]} 10. Nd5 {[%emt 0:00:06]} Nxd5 {[%emt 0:04:55]} 11. Qxd5 {[%emt 0:00:06]} Ra7 {[%emt 0:00:08]} 12. Be3 {[%emt 0:00:43]} Rb7 {[%emt 0:00:29]} 13. Qd2 {[%emt 0:01:15]} Nd7 {[%emt 0:04:59]} 14. O-O {[%emt 0:03:20]} O-O {[%emt 0:04:08]} 15. b3 {[%emt 0:08:27]} Nf6 {[%emt 0:08:14]} 16. a4 {[%emt 0:10:11]} Be6 {[%emt 0:08:03]} 17. axb5 {[%emt 0:08:03]} axb5 {[%emt 0:00:30]} 18. Nc3 {[%emt 0:06:36]} Qc8 {[%emt 0:05:45]} 19. Kh2 {[%emt 0:02:08]} b4 {[%emt 0:07:31]} 20. Nd5 {[%emt 0:02:57]} Nxd5 {[%emt 0:02:42]} 21. exd5 {[%emt 0:00:05]} Bf5 {[%emt 0:00:14]} 22. Ra2 {[%emt 0:01:15]} Bd8 {[%emt 0:06:49]} 23. Rc1 {[%emt 0:11:46]} Bb6 {[%emt 0:04:52]} 24. Bf1 {[%emt 0:03:28]} Qc7 {[%emt 0:08:46]} 25. Rca1 {[%emt 0:03:41]} Be4 {[%emt 0:05:39]} 26. Bc4 {[%emt 0:06:19]} h4 {[%emt 0:03:58]} 27. g4 {[%emt 0:11:33]} f5 {[%emt 0:06:08]} 28. Bxb6 Qxb6 {[%emt 0:00:59]} 29. Ra6 {[%emt 0:07:30]} Qd4 {[%emt 0:05:12]} 30. Qxd4 {[%emt 0:01:08]} exd4 {[%emt 0:00:05]} 31. g5 {[%emt 0:11:42]} Bxc2 {[%emt 0:02:29]} 32. R6a2 {[%emt 0:00:40]} d3 {[%emt 0:00:14]} 33. Rc1 {[%emt 0:00:53]} Re7 {[%emt 0:01:59]} 34. Raxc2 {[%emt 0:00:03]} dxc2 {[%emt 0:00:03]} 35. Rxc2 {[%emt 0:00:01]} f4 {[%emt 0:00:51]} 36. Rc1 {[%emt 0:01:34]} f3 {[%emt 0:01:16]} 37. Rg1 {[%emt 0:00:30]} Re4 {[%emt 0:00:49]} 38. g6 {[%emt 0:00:31]} Rf6 {[%emt 0:00:51]} 39. Rg5 {[%emt 0:01:09]} Rd4 {[%emt 0:01:01]} 40. Kg1 {[%emt 0:00:51]} Rd1+ {[%emt 0:00:44]} 41. Kh2 {[%emt 0:30:05]} Rf4 {[%emt 0:02:08]} 42. Bb5 {[%emt 0:00:00]} Re4 {[%emt 0:03:38]} 43. Rf5 {[%emt 0:00:00]} Ree1 {[%emt 0:00:51]} 44. Bf1 {[%emt 0:00:00]} Rd2 {[%emt 0:03:00]} 0-1

[Event "FIDE World Junior U20-ch Girls 2025"]
[Site "Petrovac"]
[Date "2025.02.28"]
[Round "4.34"]
[White "Zhou, Shumeng"]
[Black "Mickunaite, Agne"]
[Result "1-0"]
[Annotator "NA"]
[ECO "B36"]
[WhiteElo "2049"]
[BlackElo "1918"]
[PlyCount "81"]
[EventDate "2025.02.23"]
[EventType "swiss"]
[EventCountry "MNE"]
[SourceTitle "playchess.com"]
[Source "ChessBase"]
[SourceQuality "1"]
[TimeControl "40/5400+30:1800+30"]

1. e4 {[%emt 0:00:02]} c5 {[%emt 0:00:07]} 2. Nf3 {[%emt 0:00:04]} Nc6 {[%emt 0:00:06]} 3. d4 {[%emt 0:00:04]} cxd4 {[%emt 0:00:09]} 4. Nxd4 {[%emt 0:00:04]} g6 {[%emt 0:00:09]} 5. c4 {[%emt 0:00:05]} Nf6 {[%emt 0:00:52]} 6. Nc3 {[%emt 0:00:04]} Nxd4 {[%emt 0:00:48]} 7. Qxd4 {[%emt 0:00:03]} d6 {[%emt 0:00:14]} 8. Be3 {[%emt 0:00:37]} Bg7 {[%emt 0:01:01]} 9. Be2 {[%emt 0:00:20]} O-O {[%emt 0:00:20]} 10. Qd2 {[%emt 0:00:04]} Be6 {[%emt 0:03:34]} 11. Rc1 {[%emt 0:00:09]} Qa5 {[%emt 0:01:58]} 12. O-O {[%emt 0:00:52]} Rfc8 {[%emt 0:04:55]} 13. b3 {[%emt 0:00:53]} Qd8 {[%emt 0:05:01]} 14. f4 {[%emt 0:03:53]} Bd7 {[%emt 0:04:27]} 15. Kh1 {[%emt 0:06:00]} Bc6 {[%emt 0:07:08]} 16. Bd3 {[%emt 0:00:33]} a5 {[%emt 0:05:06]} 17. Bb1 {[%emt 0:08:50]} Qd7 {[%emt 0:08:49]} 18. a4 {[%emt 0:09:55]} b6 {[%emt 0:14:24]} 19. Bd4 {[%emt 0:05:14]} Qb7 {[%emt 0:01:21]} 20. Nd5 {[%emt 0:00:20]} Bxd5 {[%emt 0:00:31]} 21. exd5 {[%emt 0:05:37]} Qc7 {[%emt 0:06:11]} 22. Rce1 {[%emt 0:00:00]} Re8 {[%emt 0:03:29]} 23. Qb2 {[%emt 0:00:28]} Rab8 {[%emt 0:05:19]} 24. Rf3 {[%emt 0:01:51]} Qd7 {[%emt 0:00:59]} 25. f5 {[%emt 0:02:23]} g5 {[%emt 0:04:54]} 26. Qd2 {[%emt 0:04:01]} h6 {[%emt 0:03:33]} 27. h4 {[%emt 0:02:54]} g4 {[%emt 0:01:19]} 28. Rg3 {[%emt 0:00:10]} Kh7 {[%emt 0:00:19]} 29. h5 {[%emt 0:06:33]} Rg8 {[%emt 0:02:45]} 30. Rxg4 {[%emt 0:06:45]} Bh8 {[%emt 0:00:24]} 31. Rxg8 {[%emt 0:01:53]} Rxg8 {[%emt 0:00:06]} 32. Qe3 {[%emt 0:03:05]} Rg4 {[%emt 0:01:45]} 33. Bc3 {[%emt 0:04:11]} Rg5 {[%emt 0:03:16]} 34. Qxe7 {[%emt 0:00:32]} Qxe7 35. Rxe7 {[%emt 0:00:02]} Kg8 {[%emt 0:03:08]} 36. Rb7 {[%emt 0:01:30]} Bg7 {[%emt 0:00:25]} 37. Rb8+ {[%emt 0:00:51]} Kh7 {[%emt 0:00:28]} 38. Rxb6 {[%emt 0:00:18]} Rxh5+ {[%emt 0:01:08]} 39. Kg1 {[%emt 0:00:02]} Rg5 {[%emt 0:03:49]} 40. Rxd6 {[%emt 0:00:52]} Ne4 {[%emt 0:04:06]} 41. f6 {[%emt 0:30:07]} 1-0

[Event "FIDE World Junior U20-ch Girls 2025"]
[Site "Petrovac"]
[Date "2025.02.28"]
[Round "4.35"]
[White "Shohradova, Leyla"]
[Black "Huseynova, Lala"]
[Result "1-0"]
[Annotator "NA"]
[ECO "E11"]
[WhiteElo "1986"]
[BlackElo "2032"]
[PlyCount "71"]
[EventDate "2025.02.23"]
[EventType "swiss"]
[EventCountry "MNE"]
[SourceTitle "playchess.com"]
[Source "ChessBase"]
[SourceQuality "1"]
[TimeControl "40/5400+30:1800+30"]

1. d4 {[%emt 0:00:02]} d5 {[%emt 0:00:12]} 2. c4 {[%emt 0:00:02]} e6 {[%emt 0:00:05]} 3. Nf3 {[%emt 0:00:03]} Nf6 {[%emt 0:00:05]} 4. g3 {[%emt 0:00:04]} Bb4+ {[%emt 0:00:05]} 5. Bd2 {[%emt 0:00:05]} Be7 {[%emt 0:00:05]} 6. Bg2 {[%emt 0:00:06]} c6 {[%emt 0:00:10]} 7. O-O {[%emt 0:00:20]} Nbd7 {[%emt 0:00:22]} 8. Qc2 {[%emt 0:00:22]} b6 {[%emt 0:00:18]} 9. Bf4 {[%emt 0:00:49]} Bb7 {[%emt 0:00:58]} 10. Rd1 {[%emt 0:00:13]} O-O {[%emt 0:01:19]} 11. Ne5 {[%emt 0:00:24]} Rc8 {[%emt 0:03:04]} 12. Nc3 {[%emt 0:00:41]} Nh5 {[%emt 0:14:47]} 13. Bc1 {[%emt 0:05:24]} g6 {[%emt 0:08:21]} 14. Bh6 {[%emt 0:19:58]} Ng7 {[%emt 0:02:44]} 15. Rac1 {[%emt 0:08:57]} Re8 {[%emt 0:04:52]} 16. cxd5 {[%emt 0:05:33]} cxd5 {[%emt 0:01:10]} 17. Qa4 {[%emt 0:03:55]} Nxe5 {[%emt 0:04:02]} 18. dxe5 {[%emt 0:00:02]} Bc6 {[%emt 0:02:28]} 19. Qa6 {[%emt 0:12:35]} Nf5 {[%emt 0:14:13]} 20. Bf4 {[%emt 0:00:00]} g5 {[%emt 0:04:14]} 21. e4 {[%emt 0:00:00]} gxf4 {[%emt 0:01:59]} 22. exf5 {[%emt 0:00:00]} exf5 {[%emt 0:10:46]} 23. Qd3 {[%emt 0:08:04]} Bg5 {[%emt 0:03:17]} 24. h4 {[%emt 0:06:45]} Bh6 {[%emt 0:01:22]} 25. Rc2 {[%emt 0:14:17]} Rxe5 {[%emt 0:02:26]} 26. Qd4 {[%emt 0:02:05]} Re6 {[%emt 0:10:30]} 27. Ne2 {[%emt 0:03:25]} fxg3 {[%emt 0:02:51]} 28. Nxg3 {[%emt 0:01:59]} Qf6 {[%emt 0:02:29]} 29. Bxd5 {[%emt 0:02:20]} Re1+ {[%emt 0:02:14]} 30. Kh2 {[%emt 0:00:19]} Qxd4 {[%emt 0:00:30]} 31. Rxd4 {[%emt 0:00:02]} Bg7 {[%emt 0:01:02]} 32. Rdc4 {[%emt 0:01:54]} Bxd5 {[%emt 0:01:33]} 33. Rxc8+ {[%emt 0:00:01]} Bf8 {[%emt 0:00:01]} 34. Rd8 {[%emt 0:01:37]} Be6 {[%emt 0:00:14]} 35. Nh5 {[%emt 0:00:47]} Re5 {[%emt 0:03:00]} 36. f4 {[%emt 0:00:38]} 1-0

[Event "FIDE World Junior U20-ch Girls 2025"]
[Site "Petrovac"]
[Date "2025.02.28"]
[Round "4.36"]
[White "Karacsonyi, Luca"]
[Black "Djerroud, Chahrazed"]
[Result "0-1"]
[Annotator "NA"]
[ECO "C47"]
[WhiteElo "2026"]
[BlackElo "1914"]
[PlyCount "54"]
[EventDate "2025.02.23"]
[EventType "swiss"]
[EventCountry "MNE"]
[SourceTitle "playchess.com"]
[Source "ChessBase"]
[SourceQuality "1"]
[TimeControl "40/5400+30:1800+30"]

1. e4 {[%emt 0:00:04]} e5 {[%emt 0:00:09]} 2. Nf3 {[%emt 0:00:06]} Nc6 {[%emt 0:00:03]} 3. Nc3 {[%emt 0:00:06]} Nf6 {[%emt 0:01:18]} 4. Nd5 {[%emt 0:00:19]} d6 {[%emt 0:06:51]} 5. d4 {[%emt 0:01:56]} Bg4 {[%emt 0:13:57]} 6. Bb5 {[%emt 0:08:11]} a6 {[%emt 0:02:12]} 7. Bxc6+ {[%emt 0:03:43]} bxc6 {[%emt 0:00:02]} 8. Nb4 {[%emt 0:02:55]} Qd7 {[%emt 0:05:00]} 9. dxe5 {[%emt 0:05:47]} Nxe4 {[%emt 0:14:53]} 10. O-O {[%emt 0:09:04]} d5 {[%emt 0:00:00]} 11. Nd3 {[%emt 0:03:59]} Nc5 {[%emt 0:05:51]} 12. e6 {[%emt 0:08:18]} Nxe6 {[%emt 0:09:59]} 13. Nde5 {[%emt 0:02:29]} Bxf3 {[%emt 0:00:00]} 14. Qxf3 {[%emt 0:01:00]} Qe7 {[%emt 0:00:00]} 15. Re1 {[%emt 0:05:24]} Qf6 {[%emt 0:10:48]} 16. Qc3 {[%emt 0:07:08]} Bc5 {[%emt 0:00:59]} 17. Be3 {[%emt 0:05:56]} d4 {[%emt 0:04:42]} 18. Bxd4 {[%emt 0:01:55]} Bxd4 {[%emt 0:00:01]} 19. Qxc6+ {[%emt 0:00:34]} Ke7 {[%emt 0:00:14]} 20. Ng4 {[%emt 0:14:41]} Qf4 {[%emt 0:03:31]} 21. Rad1 {[%emt 0:05:44]} Rhd8 {[%emt 0:04:49]} 22. Re4 {[%emt 0:03:19]} Qd6 {[%emt 0:00:52]} 23. Qa4 {[%emt 0:03:08]} Qd5 {[%emt 0:03:50]} 24. Re5 {[%emt 0:04:49]} Bxf2+ {[%emt 0:02:04]} 25. Kxf2 {[%emt 0:00:44]} Qxd1 {[%emt 0:00:28]} 26. Ne3 {[%emt 0:01:05]} Qd2+ {[%emt 0:02:00]} 27. Kg3 {[%emt 0:01:35]} Kf8 {[%emt 0:00:34]} 0-1

[Event "FIDE World Junior U20-ch Girls 2025"]
[Site "Petrovac"]
[Date "2025.02.28"]
[Round "4.37"]
[White "Ostensson, Julia"]
[Black "Romany, Joy"]
[Result "1-0"]
[Annotator "NA"]
[ECO "B28"]
[WhiteElo "1979"]
[BlackElo "2025"]
[PlyCount "83"]
[EventDate "2025.02.23"]
[EventType "swiss"]
[EventCountry "MNE"]
[SourceTitle "playchess.com"]
[Source "ChessBase"]
[SourceQuality "1"]
[TimeControl "40/5400+30:1800+30"]

1. e4 {[%emt 0:00:03]} c5 {[%emt 0:00:15]} 2. Nf3 {[%emt 0:00:04]} a6 {[%emt 0:00:08]} 3. c3 {[%emt 0:04:32]} d5 {[%emt 0:00:06]} 4. exd5 {[%emt 0:00:23]} Qxd5 {[%emt 0:00:04]} 5. d4 {[%emt 0:00:47]} e6 {[%emt 0:00:28]} 6. Be2 {[%emt 0:04:01]} Nf6 {[%emt 0:00:16]} 7. O-O {[%emt 0:00:29]} cxd4 {[%emt 0:00:13]} 8. cxd4 {[%emt 0:05:20]} Nc6 {[%emt 0:02:52]} 9. Nc3 {[%emt 0:00:24]} Qd8 {[%emt 0:00:10]} 10. Qb3 {[%emt 0:05:24]} Be7 {[%emt 0:19:54]} 11. a3 {[%emt 0:02:38]} O-O {[%emt 0:04:58]} 12. Rd1 {[%emt 0:04:17]} Nd5 {[%emt 0:01:04]} 13. Ne5 {[%emt 0:13:50]} Na5 {[%emt 0:07:35]} 14. Qc2 {[%emt 0:03:53]} f6 {[%emt 0:07:22]} 15. Nc4 {[%emt 0:09:05]} Nxc4 {[%emt 0:01:43]} 16. Bxc4 {[%emt 0:01:43]} b5 {[%emt 0:02:32]} 17. Nxd5 {[%emt 0:11:24]} exd5 {[%emt 0:03:43]} 18. Bd3 {[%emt 0:00:30]} f5 {[%emt 0:03:41]} 19. Bf4 {[%emt 0:02:29]} Bd7 {[%emt 0:02:57]} 20. Qb3 {[%emt 0:03:04]} Bc6 {[%emt 0:02:42]} 21. Rac1 {[%emt 0:02:11]} Qd7 {[%emt 0:01:29]} 22. Be5 {[%emt 0:07:22]} Rac8 {[%emt 0:09:19]} 23. Re1 {[%emt 0:04:25]} Bb7 {[%emt 0:03:13]} 24. Rc2 {[%emt 0:05:50]} f4 {[%emt 0:11:14]} 25. Rxc8 {[%emt 0:01:10]} Qxc8 {[%emt 0:03:42]} 26. Bxg7 {[%emt 0:04:16]} Rf7 {[%emt 0:00:54]} 27. Be5 {[%emt 0:00:05]} f3 {[%emt 0:00:49]} 28. gxf3 {[%emt 0:01:37]} Qh3 {[%emt 0:01:36]} 29. Bg3 {[%emt 0:01:21]} h5 {[%emt 0:01:47]} 30. Bf1 {[%emt 0:00:24]} Qf5 {[%emt 0:01:21]} 31. Qd3 {[%emt 0:00:23]} Qf6 {[%emt 0:01:40]} 32. Bh3 {[%emt 0:00:35]} Rg7 {[%emt 0:02:28]} 33. Kh1 {[%emt 0:00:09]} Qg5 {[%emt 0:02:51]} 34. Be5 {[%emt 0:02:09]} Rg6 {[%emt 0:00:12]} 35. f4 {[%emt 0:00:31]} Qh6 {[%emt 0:00:44]} 36. Bf5 {[%emt 0:00:20]} Rc6 {[%emt 0:01:07]} 37. Rg1+ {[%emt 0:00:40]} Kf7 {[%emt 0:00:06]} 38. Qg3 {[%emt 0:00:25]} Bf8 {[%emt 0:01:05]} 39. Qg8+ {[%emt 0:00:23]} Ke7 {[%emt 0:00:40]} 40. Re1 {[%emt 0:00:44]} Kd8 {[%emt 0:00:32]} 41. Qf7 {[%emt 0:11:18]} Be7 {[%emt 0:02:26]} 42. Rg1 {[%emt 0:10:03]} 1-0